{"text_format":"1","workbook":"xlsx","n_sheets":6,"sheets":["Sommaire","Ne pas utiliser","Feuil1","45-87790-3","45-89290-1","45-89290-2"],"not_rendered":{"charts":0,"images":1,"macros":1,"external_links":0,"defined_names":6,"comments":0,"pivot_tables":0},"unopened":[],"bounds":{"document_bytes":16777216,"sheet_cells":100000,"rows_first":2000,"rows_last":500,"rows_between":2000,"halvings":0,"cell_chars":16384,"cell_head_chars":4096},"cells_cut":0,"cells_raw":0,"read":"whole","date_system":"1900"}

{"sheet":"Sommaire","index":0,"n_rows":6,"n_cols":5,"rows_kept":6,"cut":false,"hidden":false,"merged":[[0,0,0,4]]}
["SOMMAIRE\ncliquer sur le numéro de commande (45) pour accéder à la commande"]
["Numéro De\nCommande","Domaine","Date\nCommande","Site\nD'achat","Statut\nCommande"]
["45-XXXXX","Nom dommaine\n et BE ou BR","XX/XX/XXXX","A choisir (liste) entre :\nAPL et Erasmus","A choisir (liste) entre :\nEn cours, Clôturer, Annuler"]
["45-89290-2","Gestion / BE","2018-09-18","APL","En cours"]
["45-89290-1","Gestion / BE","2018-09-19","APL","En cours"]
["45-87790-3","DROIT / BE","2018-09-19","APL","En cours"]

{"sheet":"Ne pas utiliser","index":1,"n_rows":22,"n_cols":9,"rows_kept":22,"cut":false,"hidden":false,"merged":[[17,0,17,2]]}
["statut commande","site d'achat","Statut",null,null,null,null,null,"Pour faire le récapitulatif"]
["En cours","APL","Commande",null,null,null,null,"1/"]
["Clôturer","Erasmus","Traitement",null,null,null,null,"2/"]
["Annuler",null,"Equipement",null,null,null,null,"3/"]
[null,null,"Rayon",null,null,null,null,"4/"]
[null,null,null,null,null,null,null,"5/"]
[null,null,null,null,null,null,null,"6/"]
[]
[]
[]
[]
[]
[]
[]
[]
[]
[]
["2 colonnes ci-dessous a rajouter\n aux différents onglets"]
[]
[]
["Statut","Remarques"]
["Commande"]

{"sheet":"Feuil1","index":2,"n_rows":61,"n_cols":13,"rows_kept":61,"cut":false,"hidden":false,"merged":[]}
["SITE \nD'ACHAT","N° LIGNE \nDAUPHINE ","ISBN","TITRE","EDITEUR","ANNEE","PRIX UNITAIRE","QUANTITE","TOTAL","STATUT","REMARQUES","SITE D'ACHAT","N° LIGNE DAUPHINE"]
["APL",28232,"978-2-7110-2890-0","Exercices de fiscalité des entreprises : 2018-2019 / Maurice Cozian,... Martial Chadefaux,…\n31e édition 2018-2019\nParis : LexisNexis, DL 2018\nPrécis fiscal, ISSN 2117-847X","LexisNexis",2018,37,4,148,"Commande"]
["APL",28200,"978-2-247-17736-3","Code civil [annoté] / [France] ; avec le concours de Georges Wiederkehr,... Xavier Henry,... Alice Tisserand-Martin,... [et al.] ; [coordination éditoriale] Pascale Guiomard,…\n118e édition [2019] [à jour de la loi de ratification de la réforme du droit des obligations]\nParis : Dalloz, DL 2018\n[Codes Dalloz]","Dalloz",2018,20,9,180,"Commande"]
["APL",28196,"978-2-247-17799-8","Droit civil des obligations  : méthodologie & sujets corrigés : 2019 / sous la direction de Annick Batteur ; avec la collaboration de Christophe Alleaume, Margo Bernelin, Laurent Bloch et al.","Dalloz",2018,12.9,2,25.8,"Commande"]
["APL",28198,"978-2-901626-77-0","Les avocats et le Règlement général sur la protection des données (RGPD) ","Gazette du Palais",2018,24,1,24,"Commande"]
["APL",28199,"978-2-7110-2914-3","Code civil 2019  / annoté sous la direction de Laurent Leveneur","LexisNexis",2018,19.899999999999999,2,39.799999999999997,"Commande"]
["APL",28201,"978-2-8027-6060-3","Code de la concurrence  : droits européen et français / édition Louis Vogel","Bruylant",2018,95,1,95,"Commande"]
["APL",28202,"978-2-247-17744-8","Code de procédure civile 2019, annoté  / sous la direction de Pierre Callé ; annotations de jurisprudence et bibliographie par Laurent Dargent","Dalloz",2018,35,7,245,"Commande"]
["APL",28203,"978-2-247-18292-3","Code du travail 2018-2019  : annoté / commentaires en ligne, annotations jurisprudentielles et bibliographiques par Christophe Radé, Caroline Dechristé et Magali Gadrat","Dalloz",2018,45,2,90,"Commande"]
["APL",28204,"978-2-7110-2887-0","Code du travail 2019  / annoté par Bernard Teyssié","LexisNexis",2018,59,2,118,"Commande"]
["APL",28205,"978-2-36893-350-3","Concurrence consommation 2019  : à jour du RGPD / rédaction des Editions Francis Lefebvre ; en collaboration avec Marine Bonnier, Virginie Coursière-Pluntz, Elisabeth Flaicher-Maneval et al.","F. Lefebvre",2018,162,1,162,"Commande"]
["APL",28206,"978-2-11-145721-8","La constitution de 1958, toujours d'actualité ?  / Philippe Blachèr","La Documentation française",2018,7.9,1,7.9,"Commande"]
["APL",28207,"978-2-247-17787-5","Le contrat d'adhésion  : perspectives franco-québécoises / sous la direction de Gaël Chantepie et Mathias Latina ; avec les contributions de Vincent Caron, Gaël Chantempie, Elise Charpentier et al.","Dalloz",2018,44,1,44,"Commande"]
["APL",28208,"978-2-247-11975-2","Cyberdroit 2018-2019  : le droit à l'épreuve de l'Internet / Christiane Féral-Schuhl ; édition Hani Feghali","Dalloz",2018,62,1,62,"Commande"]
["APL",28209,"978-2-275-05645-6","La décentralisation culturelle  / Jean-Marie Pontier","LGDJ",2018,26,1,26,"Commande"]
["APL",28210,"978-2-7110-2950-1","Droit administratif général  / Benoît Plessix","LexisNexis",2018,48,2,96,"Commande"]
["APL",28211,"978-2-275-04860-4","Droit anglais des affaires  / Cécile Le Gallou, Simon Wesley","LGDJ",2018,44,1,44,"Commande"]
["APL",28212,"978-2-247-17832-2","Droit civil 2e année  : les obligations : 2019 / Stéphanie Porchy-Simon","Dalloz",2018,32,1,32,"Commande"]
["APL",28213,"978-2-247-17923-7","Droit civil  : les obligations / Yvaine Buffelan-Lanore ; édition 2018-2019 par Virginie Larribau-Terneyre","Sirey",2018,39,1,39,"Commande"]
["APL",28214,"978-2-275-06164-1","Droit civil  . 1, Introduction au droit : personnes, famille, personnes protégées, biens, obligations, sûretés / Pierre Voirin, Gilles Goubeaux","LGDJ",2018,36,1,36,"Commande"]
["APL",28215,"978-2-247-17854-4","Droit constitutionnel et institutions politiques  / Jean Paul Jacqué","Dalloz",2018,16.5,1,16.5,"Commande"]
["APL",28216,"978-2-275-05467-4","Droit constitutionnel et institutions politiques  : 2018-2019 / Jean Gicquel, Jean-Éric Gicquel","LGDJ",2018,40,2,80,"Commande"]
["APL",28217,"978-2-7110-2794-1","Droit de la communication  / Emmanuel Dreyer","LexisNexis",2018,43,2,86,"Commande"]
["APL",28218,"978-2-86325-738-8","Droit des financements d'entreprise  / Zine Sekfali ; préface de Jean-Pierre Mattout","RB édition",2018,78,1,78,"Commande"]
["APL",28219,"978-2-275-03873-5","Droit des médias  : droit français, européen et international / Emmanuel Derieux","LGDJ",2018,44,2,88,"Commande"]
["APL",28220,"978-2-275-06053-8","Droit des obligations  / Bertrand Fages","LGDJ",2018,35,1,35,"Commande"]
["APL",28221,"978-2-297-06828-4","Droit des obligations  : 2018-2019 / Corinne Renault-Brahinsky","Gualino",2018,19.5,1,19.5,"Commande"]
["APL",28222,"978-2-7110-2955-6","Droit des obligations  : régime général / Philippe Delebecque, Frédéric-Jérôme Pansier","LexisNexis",2018,25,1,25,"Commande"]
["APL",28223,"978-2-7110-2956-3","Droit des obligations  , Contrat et quasi-contrat / Philippe Delebecque, Frédéric-Jérôme Pansier","LexisNexis",2018,25,1,25,"Commande"]
["APL",28224,"978-2-7110-2944-0","Droit des services publics  / Jean-François Lachaume, Hélène Pauliat, Clotilde Deffigier ; avec la collaboration de Aurélie Virot-Landais","LexisNexis",2018,43,1,43,"Commande"]
["APL",28225,"978-2-7110-2948-8","Droit des sociétés  / Maurice Cozian, Florence Deboissy, Alain Viandier","LexisNexis",2018,48,8,384,"Commande"]
["APL",28226,"978-2-01-702561-0","Droit des sociétés  : 2018-2019 / Jérôme Bonnard","Hachette Supérieur",2018,9.9499999999999993,2,19.899999999999999,"Commande"]
["APL",28227,"978-2-39013-195-3","Droit institutionnel, matériel et contentieux de l'Union européenne  / Olivier Blin ; préface de Joël Molinier","Bruylant-Collection Paradigme",2018,39,1,39,"Commande"]
["APL",28228,"978-2-247-17847-6","Droit pénal général et procédure pénale  / Bernard Bouloc, Haritini Matsopoulou","Sirey",2018,30,1,30,"Commande"]
["APL",28229,"978-2-297-06887-1","L'essentiel du droit des obligations  : 2018-2019 / Corinne Renault-Brahinsky","Gualino",2018,15.5,1,15.5,"Commande"]
["APL",28230,"978-2-297-06885-7","L'essentiel du droit des sûretés  : 2018-2019 / Gaël Piette","Gualino",2018,13.5,1,13.5,"Commande"]
["APL",28231,"978-2-275-05978-5","Etudes à la mémoire de Philippe Neau-Leduc  : le juriste dans la cité / ouvrage réalisé à l'initiative de Paul-Henri Antonmattei, Bertrand Brehier, Daniel Gutmann et al.","LGDJ",2018,149,1,149,"Commande"]
["APL",28233,"978-2-247-17853-7","Institutions internationales  / Batyah Sierpinski","Dalloz",2018,16.5,2,33,"Commande"]
["APL",28234,"978-2-275-05498-8","Introduction au droit  / Philippe Malaurie, Patrick Morvan","LGDJ",2018,35,1,35,"Commande"]
["APL",28235,"978-2-36893-375-6","Mémento social, 18  / rédaction des éditions Francis Lefebvre","F. Lefebvre",2018,65,1,65,"Commande"]
["APL",28236,"978-2-7110-2889-4","Précis de fiscalité des entreprises 2018-2019  / Maurice Cozian, Florence Deboissy, Martial Chadefaux","LexisNexis",2018,48,5,240,"Commande"]
["APL",28237,"978-2-7110-2242-7","Procédure pénale  / Serge Guinchard, Jacques Buisson","LexisNexis",2018,45,1,45,"Commande"]
["APL",28238,"978-2-247-18279-4","RGPD loi Informatique et libertés modifiée  : la concordance du RGPD avec les dispositions de la loi Informatique et libertés modifiée en un coup d'oeil / édition Zéhina Ait El Kadi, Nathalie Maximin","Dalloz",2018,19.5,1,19.5,"Commande"]
["APL",28239,"978-2-8027-6058-0","Traité de droit économique  . 1, Droit de la concurrence : droit européen / Louis Vogel","Bruylant",2018,95,1,95,"Commande"]
["APL",28240,"978-2-7110-3026-2","Traité sur l'Union européenne  Traité sur le fonctionnement de l'Union européenne Charte des droits fondamentaux / édité par Christine Kaddous et Fabrice Picod ; avec la collaboration de Sandy Kirsch","Staempfli",2018,79,1,79,"Commande"]
["APL",28241,"978-2-36893-344-2","Transmission d'entreprise 18-19  / Editions Francis Lefebvre","F. Lefebvre",2018,185,1,185,"Commande"]
["APL",28242,"978-2-247-18118-6","Vers une réforme de la responsabilité civile française  : regards croisés franco-québécois / sous la direction de Blandine Mallet-Bricout ; sous l'égide de l'Association Henri Capitant ; avec les contributions de Mireille Bacache-Gibeili, Philipe Brun, François Chénedé et al.","Dalloz",2018,44,1,44,"Commande"]
["APL",28181,"978-2-7619-3882-2","Cessez d'être gentil, soyez vrai!  : être avec les autres en restant soi-même / Thomas d'Ansembourg ; illustrations, Alexis Nouailhat ;\npréface de Guy Corneau Montréal : \nHOMME (DE L'), 2013","HOMME (DE L')",2013,12,2,24,"Commande",null,"APL",28181]
["APL",28182,"978-2-266-25883-8","Choisir sa vie  : apprendre à saisir sa chance / Tal Ben-Shahar ; traduit de l'anglais (Etats-Unis) par Hélène Collon\nParis : Pocket, 2017\nPocket, ISSN 0244-6405 ; 16361","Pocket",2017,7.5,2,15,"Commande",null,"APL",28182]
["APL",28183,"978-2-88911-973-8","La communication non violente au quotidien  / Marshall B. Rosenberg ; traduction de Simone Mouton di Giovanni ; révisée par Anne Bourrit & Godfrey Spencer\nBernex (Suisse) : Jouvence, 2018\nLes clés de la CNV","Jouvence",2018,12.9,2,25.8,"Commande",null,"APL",28183]
["APL",28184,"978-2-10-071294-6","Les compétences émotionnelles  / sous la direction de Moïra Mikolajczak ; avec la collaboration de Jordi Quoidbach, Ilios Kotsou, Delphine Nelis\nNouvelle présentation\nMalakoff (Hauts-de-Seine) : Dunod, 2014\nPsycho sup, ISSN 1275-4854 Psychologie cognitive","Dunod",2014,28,1,28,"Commande",null,"APL",28184]
["APL",28185,"978-2-88911-824-3","Dénouer les conflits par la communication non violente  / Marshall B. Rosenberg ; entretiens avec Gabriele Seils ; traduit d'allemand de Daniel Béguin\nNouvelle édition\nBernex (Suisse) : Jouvence, 2017\nLes clés de la CNV","Jouvence",2017,19.5,2,39,"Commande",null,"APL",28185]
["APL",28186,"978-2-7381-3411-0","Et n'oublie pas d'être heureux  : abécédaire de psychologie positive / Christophe André\nParis : O. Jacob, 2016","O. Jacob",2016,9.9,2,19.8,"Commande",null,"APL",28186]
["APL",28187,"978-2-343-14507-5","Intelligence et compétences émotionnelles en entreprise  : perspectives multiples / sous la direction de Claude Berghmans ; préface Véronique Tran\nParis : L'Harmattan, 2018\nEconomie et innovation, ISSN 1768-5249","L'Harmattan",2018,35,1,35,"Commande",null,"APL",28187]
["APL",28188,"978-2-290-06893-9","Où tu vas, tu es  : apprendre à méditer pour se libérer du stress et des tensions profondes / Jon Kabat-Zinn ; traduit de l'anglais (Etats-Unis) par Yolande Du Luart\nNouvelle présentation\nParis : J'ai lu, 2013\nJ'ai lu, ISSN 0291-3623 ; 7516 Bien-être Ahmed Djouder 1159-7623","J'ai lu",2013,6.7,2,13.4,"Commande",null,"APL",28188]
["APL",28189,"978-2-88911-582-2","Petit cahier d'exercices de communication non violente  / Anne van Stappen ; illustrations Jean Augagneur\nNouvelle édition\nBernex (Suisse) : Jouvence, 2015\nPetit cahier, sport cérébral du bien-être ; 10","Jouvence",2015,6.9,2,13.8,"Commande",null,"APL",28189]
["APL",28190,"978-2-412-03399-9","Trouver son ikigaï  : vivre de ce qui nous passionne / Christie Vanbremeersch\nParis : First Editions, 2018\nL'optimiste","First Editions",2018,12.95,2,25.9,"Commande",null,"APL",28190]
["APL",28195,"978-2-10-056703-4","La stratégie prix  : le pricing : levier indispensable pour augmenter votre rentabilité / Hermann Simon, Florent Jacquet, Franck Brault\n3e édition [mise à jour]\nParis : Dunod, DL 2011\nStratégies et management\n","Dunod",2011,34,1,34,"Commande"]
["APL",28193,"978-2-911256-99-8","Introduction à la conception innovante  : éléments théoriques et pratiques de la théorie C-K / Marine Agogué, Frédéric Arnoux, Ingi Brown... [et al.] ; [préface de A. Hatchuel et B. Weil ; posface de C. Trémoureux]\nParis : Presses des Mines-Transvalor, impr. 2013\nCollection Économie et gestion","Presses des Mines-Transvalor",2013,15,1,15,"Commande"]
["APL",28192,"978-2-311-40148-6","Études de marché  / Jean-Luc Giannelloni,... Éric Vernette,…\n4e édition\nParis : Vuibert, impr. 2015, cop. 2015\nCollection gestion, ISSN 0751-2872","Vuibert",2015,45,1,45,"Commande"]
["APL",28194,"978-2-3260-0152-7","Marketing digital / Dave Chaffey,... Fiona Ellis-Chadwick ; [traduction et adaptation de l'anglais], Maria Mercanti-Guérin,... Henri Isaac,... Pierre Volle,…\n6e édition\nMontreuil : Pearson, copyright 2017","Pearson",2017,49,1,49,"Commande"]

{"sheet":"45-87790-3","index":3,"n_rows":47,"n_cols":11,"rows_kept":47,"cut":false,"hidden":false,"merged":[]}
["SITE \nD'ACHAT","N° LIGNE \nDAUPHINE ","ISBN","TITRE","EDITEUR","ANNEE","PRIX UNITAIRE","QUANTITE","TOTAL","STATUT","REMARQUES"]
["APL",28232,"978-2-7110-2890-0","Exercices de fiscalité des entreprises : 2018-2019 / Maurice Cozian,... Martial Chadefaux,…\n31e édition 2018-2019\nParis : LexisNexis, DL 2018\nPrécis fiscal, ISSN 2117-847X","LexisNexis",2018,37,4,{"$f":"C45877903[[#This Row],[QUANTITE]]*C45877903[[#This Row],[PRIX UNITAIRE]]","v":148},"Commande"]
["APL",28200,"978-2-247-17736-3","Code civil [annoté] / [France] ; avec le concours de Georges Wiederkehr,... Xavier Henry,... Alice Tisserand-Martin,... [et al.] ; [coordination éditoriale] Pascale Guiomard,…\n118e édition [2019] [à jour de la loi de ratification de la réforme du droit des obligations]\nParis : Dalloz, DL 2018\n[Codes Dalloz]","Dalloz",2018,20,9,{"$f":"C45877903[[#This Row],[QUANTITE]]*C45877903[[#This Row],[PRIX UNITAIRE]]","v":180},"Commande"]
["APL",28196,"978-2-247-17799-8","Droit civil des obligations  : méthodologie & sujets corrigés : 2019 / sous la direction de Annick Batteur ; avec la collaboration de Christophe Alleaume, Margo Bernelin, Laurent Bloch et al.","Dalloz",2018,12.9,2,{"$f":"C45877903[[#This Row],[QUANTITE]]*C45877903[[#This Row],[PRIX UNITAIRE]]","v":25.8},"Commande"]
["APL",28198,"978-2-901626-77-0","Les avocats et le Règlement général sur la protection des données (RGPD) ","Gazette du Palais",2018,24,1,{"$f":"C45877903[[#This Row],[QUANTITE]]*C45877903[[#This Row],[PRIX UNITAIRE]]","v":24},"Commande"]
["APL",28199,"978-2-7110-2914-3","Code civil 2019  / annoté sous la direction de Laurent Leveneur","LexisNexis",2018,19.899999999999999,2,{"$f":"C45877903[[#This Row],[QUANTITE]]*C45877903[[#This Row],[PRIX UNITAIRE]]","v":39.799999999999997},"Commande"]
["APL",28201,"978-2-8027-6060-3","Code de la concurrence  : droits européen et français / édition Louis Vogel","Bruylant",2018,95,1,{"$f":"C45877903[[#This Row],[QUANTITE]]*C45877903[[#This Row],[PRIX UNITAIRE]]","v":95},"Commande"]
["APL",28202,"978-2-247-17744-8","Code de procédure civile 2019, annoté  / sous la direction de Pierre Callé ; annotations de jurisprudence et bibliographie par Laurent Dargent","Dalloz",2018,35,7,{"$f":"C45877903[[#This Row],[QUANTITE]]*C45877903[[#This Row],[PRIX UNITAIRE]]","v":245},"Commande"]
["APL",28203,"978-2-247-18292-3","Code du travail 2018-2019  : annoté / commentaires en ligne, annotations jurisprudentielles et bibliographiques par Christophe Radé, Caroline Dechristé et Magali Gadrat","Dalloz",2018,45,2,{"$f":"C45877903[[#This Row],[QUANTITE]]*C45877903[[#This Row],[PRIX UNITAIRE]]","v":90},"Commande"]
["APL",28204,"978-2-7110-2887-0","Code du travail 2019  / annoté par Bernard Teyssié","LexisNexis",2018,59,2,{"$f":"C45877903[[#This Row],[QUANTITE]]*C45877903[[#This Row],[PRIX UNITAIRE]]","v":118},"Commande"]
["APL",28205,"978-2-36893-350-3","Concurrence consommation 2019  : à jour du RGPD / rédaction des Editions Francis Lefebvre ; en collaboration avec Marine Bonnier, Virginie Coursière-Pluntz, Elisabeth Flaicher-Maneval et al.","F. Lefebvre",2018,162,1,{"$f":"C45877903[[#This Row],[QUANTITE]]*C45877903[[#This Row],[PRIX UNITAIRE]]","v":162},"Commande"]
["APL",28206,"978-2-11-145721-8","La constitution de 1958, toujours d'actualité ?  / Philippe Blachèr","La Documentation française",2018,7.9,1,{"$f":"C45877903[[#This Row],[QUANTITE]]*C45877903[[#This Row],[PRIX UNITAIRE]]","v":7.9},"Commande"]
["APL",28207,"978-2-247-17787-5","Le contrat d'adhésion  : perspectives franco-québécoises / sous la direction de Gaël Chantepie et Mathias Latina ; avec les contributions de Vincent Caron, Gaël Chantempie, Elise Charpentier et al.","Dalloz",2018,44,1,{"$f":"C45877903[[#This Row],[QUANTITE]]*C45877903[[#This Row],[PRIX UNITAIRE]]","v":44},"Commande"]
["APL",28208,"978-2-247-11975-2","Cyberdroit 2018-2019  : le droit à l'épreuve de l'Internet / Christiane Féral-Schuhl ; édition Hani Feghali","Dalloz",2018,62,1,{"$f":"C45877903[[#This Row],[QUANTITE]]*C45877903[[#This Row],[PRIX UNITAIRE]]","v":62},"Commande"]
["APL",28209,"978-2-275-05645-6","La décentralisation culturelle  / Jean-Marie Pontier","LGDJ",2018,26,1,{"$f":"C45877903[[#This Row],[QUANTITE]]*C45877903[[#This Row],[PRIX UNITAIRE]]","v":26},"Commande"]
["APL",28210,"978-2-7110-2950-1","Droit administratif général  / Benoît Plessix","LexisNexis",2018,48,2,{"$f":"C45877903[[#This Row],[QUANTITE]]*C45877903[[#This Row],[PRIX UNITAIRE]]","v":96},"Commande"]
["APL",28211,"978-2-275-04860-4","Droit anglais des affaires  / Cécile Le Gallou, Simon Wesley","LGDJ",2018,44,1,{"$f":"C45877903[[#This Row],[QUANTITE]]*C45877903[[#This Row],[PRIX UNITAIRE]]","v":44},"Commande"]
["APL",28212,"978-2-247-17832-2","Droit civil 2e année  : les obligations : 2019 / Stéphanie Porchy-Simon","Dalloz",2018,32,1,{"$f":"C45877903[[#This Row],[QUANTITE]]*C45877903[[#This Row],[PRIX UNITAIRE]]","v":32},"Commande"]
["APL",28213,"978-2-247-17923-7","Droit civil  : les obligations / Yvaine Buffelan-Lanore ; édition 2018-2019 par Virginie Larribau-Terneyre","Sirey",2018,39,1,{"$f":"C45877903[[#This Row],[QUANTITE]]*C45877903[[#This Row],[PRIX UNITAIRE]]","v":39},"Commande"]
["APL",28214,"978-2-275-06164-1","Droit civil  . 1, Introduction au droit : personnes, famille, personnes protégées, biens, obligations, sûretés / Pierre Voirin, Gilles Goubeaux","LGDJ",2018,36,1,{"$f":"C45877903[[#This Row],[QUANTITE]]*C45877903[[#This Row],[PRIX UNITAIRE]]","v":36},"Commande"]
["APL",28215,"978-2-247-17854-4","Droit constitutionnel et institutions politiques  / Jean Paul Jacqué","Dalloz",2018,16.5,1,{"$f":"C45877903[[#This Row],[QUANTITE]]*C45877903[[#This Row],[PRIX UNITAIRE]]","v":16.5},"Commande"]
["APL",28216,"978-2-275-05467-4","Droit constitutionnel et institutions politiques  : 2018-2019 / Jean Gicquel, Jean-Éric Gicquel","LGDJ",2018,40,2,{"$f":"C45877903[[#This Row],[QUANTITE]]*C45877903[[#This Row],[PRIX UNITAIRE]]","v":80},"Commande"]
["APL",28217,"978-2-7110-2794-1","Droit de la communication  / Emmanuel Dreyer","LexisNexis",2018,43,2,{"$f":"C45877903[[#This Row],[QUANTITE]]*C45877903[[#This Row],[PRIX UNITAIRE]]","v":86},"Commande"]
["APL",28218,"978-2-86325-738-8","Droit des financements d'entreprise  / Zine Sekfali ; préface de Jean-Pierre Mattout","RB édition",2018,78,1,{"$f":"C45877903[[#This Row],[QUANTITE]]*C45877903[[#This Row],[PRIX UNITAIRE]]","v":78},"Commande"]
["APL",28219,"978-2-275-03873-5","Droit des médias  : droit français, européen et international / Emmanuel Derieux","LGDJ",2018,44,2,{"$f":"C45877903[[#This Row],[QUANTITE]]*C45877903[[#This Row],[PRIX UNITAIRE]]","v":88},"Commande"]
["APL",28220,"978-2-275-06053-8","Droit des obligations  / Bertrand Fages","LGDJ",2018,35,1,{"$f":"C45877903[[#This Row],[QUANTITE]]*C45877903[[#This Row],[PRIX UNITAIRE]]","v":35},"Commande"]
["APL",28221,"978-2-297-06828-4","Droit des obligations  : 2018-2019 / Corinne Renault-Brahinsky","Gualino",2018,19.5,1,{"$f":"C45877903[[#This Row],[QUANTITE]]*C45877903[[#This Row],[PRIX UNITAIRE]]","v":19.5},"Commande"]
["APL",28222,"978-2-7110-2955-6","Droit des obligations  : régime général / Philippe Delebecque, Frédéric-Jérôme Pansier","LexisNexis",2018,25,1,{"$f":"C45877903[[#This Row],[QUANTITE]]*C45877903[[#This Row],[PRIX UNITAIRE]]","v":25},"Commande"]
["APL",28223,"978-2-7110-2956-3","Droit des obligations  , Contrat et quasi-contrat / Philippe Delebecque, Frédéric-Jérôme Pansier","LexisNexis",2018,25,1,{"$f":"C45877903[[#This Row],[QUANTITE]]*C45877903[[#This Row],[PRIX UNITAIRE]]","v":25},"Commande"]
["APL",28224,"978-2-7110-2944-0","Droit des services publics  / Jean-François Lachaume, Hélène Pauliat, Clotilde Deffigier ; avec la collaboration de Aurélie Virot-Landais","LexisNexis",2018,43,1,{"$f":"C45877903[[#This Row],[QUANTITE]]*C45877903[[#This Row],[PRIX UNITAIRE]]","v":43},"Commande"]
["APL",28225,"978-2-7110-2948-8","Droit des sociétés  / Maurice Cozian, Florence Deboissy, Alain Viandier","LexisNexis",2018,48,8,{"$f":"C45877903[[#This Row],[QUANTITE]]*C45877903[[#This Row],[PRIX UNITAIRE]]","v":384},"Commande"]
["APL",28226,"978-2-01-702561-0","Droit des sociétés  : 2018-2019 / Jérôme Bonnard","Hachette Supérieur",2018,9.9499999999999993,2,{"$f":"C45877903[[#This Row],[QUANTITE]]*C45877903[[#This Row],[PRIX UNITAIRE]]","v":19.899999999999999},"Commande"]
["APL",28227,"978-2-39013-195-3","Droit institutionnel, matériel et contentieux de l'Union européenne  / Olivier Blin ; préface de Joël Molinier","Bruylant-Collection Paradigme",2018,39,1,{"$f":"C45877903[[#This Row],[QUANTITE]]*C45877903[[#This Row],[PRIX UNITAIRE]]","v":39},"Commande"]
["APL",28228,"978-2-247-17847-6","Droit pénal général et procédure pénale  / Bernard Bouloc, Haritini Matsopoulou","Sirey",2018,30,1,{"$f":"C45877903[[#This Row],[QUANTITE]]*C45877903[[#This Row],[PRIX UNITAIRE]]","v":30},"Commande"]
["APL",28229,"978-2-297-06887-1","L'essentiel du droit des obligations  : 2018-2019 / Corinne Renault-Brahinsky","Gualino",2018,15.5,1,{"$f":"C45877903[[#This Row],[QUANTITE]]*C45877903[[#This Row],[PRIX UNITAIRE]]","v":15.5},"Commande"]
["APL",28230,"978-2-297-06885-7","L'essentiel du droit des sûretés  : 2018-2019 / Gaël Piette","Gualino",2018,13.5,1,{"$f":"C45877903[[#This Row],[QUANTITE]]*C45877903[[#This Row],[PRIX UNITAIRE]]","v":13.5},"Commande"]
["APL",28231,"978-2-275-05978-5","Etudes à la mémoire de Philippe Neau-Leduc  : le juriste dans la cité / ouvrage réalisé à l'initiative de Paul-Henri Antonmattei, Bertrand Brehier, Daniel Gutmann et al.","LGDJ",2018,149,1,{"$f":"C45877903[[#This Row],[QUANTITE]]*C45877903[[#This Row],[PRIX UNITAIRE]]","v":149},"Commande"]
["APL",28233,"978-2-247-17853-7","Institutions internationales  / Batyah Sierpinski","Dalloz",2018,16.5,2,{"$f":"C45877903[[#This Row],[QUANTITE]]*C45877903[[#This Row],[PRIX UNITAIRE]]","v":33},"Commande"]
["APL",28234,"978-2-275-05498-8","Introduction au droit  / Philippe Malaurie, Patrick Morvan","LGDJ",2018,35,1,{"$f":"C45877903[[#This Row],[QUANTITE]]*C45877903[[#This Row],[PRIX UNITAIRE]]","v":35},"Commande"]
["APL",28235,"978-2-36893-375-6","Mémento social, 18  / rédaction des éditions Francis Lefebvre","F. Lefebvre",2018,65,1,{"$f":"C45877903[[#This Row],[QUANTITE]]*C45877903[[#This Row],[PRIX UNITAIRE]]","v":65},"Commande"]
["APL",28236,"978-2-7110-2889-4","Précis de fiscalité des entreprises 2018-2019  / Maurice Cozian, Florence Deboissy, Martial Chadefaux","LexisNexis",2018,48,5,{"$f":"C45877903[[#This Row],[QUANTITE]]*C45877903[[#This Row],[PRIX UNITAIRE]]","v":240},"Commande"]
["APL",28237,"978-2-7110-2242-7","Procédure pénale  / Serge Guinchard, Jacques Buisson","LexisNexis",2018,45,1,{"$f":"C45877903[[#This Row],[QUANTITE]]*C45877903[[#This Row],[PRIX UNITAIRE]]","v":45},"Commande"]
["APL",28238,"978-2-247-18279-4","RGPD loi Informatique et libertés modifiée  : la concordance du RGPD avec les dispositions de la loi Informatique et libertés modifiée en un coup d'oeil / édition Zéhina Ait El Kadi, Nathalie Maximin","Dalloz",2018,19.5,1,{"$f":"C45877903[[#This Row],[QUANTITE]]*C45877903[[#This Row],[PRIX UNITAIRE]]","v":19.5},"Commande"]
["APL",28239,"978-2-8027-6058-0","Traité de droit économique  . 1, Droit de la concurrence : droit européen / Louis Vogel","Bruylant",2018,95,1,{"$f":"C45877903[[#This Row],[QUANTITE]]*C45877903[[#This Row],[PRIX UNITAIRE]]","v":95},"Commande"]
["APL",28240,"978-2-7110-3026-2","Traité sur l'Union européenne  Traité sur le fonctionnement de l'Union européenne Charte des droits fondamentaux / édité par Christine Kaddous et Fabrice Picod ; avec la collaboration de Sandy Kirsch","Staempfli",2018,79,1,{"$f":"C45877903[[#This Row],[QUANTITE]]*C45877903[[#This Row],[PRIX UNITAIRE]]","v":79},"Commande"]
["APL",28241,"978-2-36893-344-2","Transmission d'entreprise 18-19  / Editions Francis Lefebvre","F. Lefebvre",2018,185,1,{"$f":"C45877903[[#This Row],[QUANTITE]]*C45877903[[#This Row],[PRIX UNITAIRE]]","v":185},"Commande"]
["APL",28242,"978-2-247-18118-6","Vers une réforme de la responsabilité civile française  : regards croisés franco-québécois / sous la direction de Blandine Mallet-Bricout ; sous l'égide de l'Association Henri Capitant ; avec les contributions de Mireille Bacache-Gibeili, Philipe Brun, François Chénedé et al.","Dalloz",2018,44,1,{"$f":"C45877903[[#This Row],[QUANTITE]]*C45877903[[#This Row],[PRIX UNITAIRE]]","v":44},"Commande"]

{"sheet":"45-89290-1","index":4,"n_rows":5,"n_cols":11,"rows_kept":5,"cut":false,"hidden":false,"merged":[]}
["SITE \nD'ACHAT","N° LIGNE \nDAUPHINE ","ISBN","TITRE","EDITEUR","ANNEE","PRIX UNITAIRE","QUANTITE","TOTAL","STATUT","REMARQUES"]
["APL",28195,"978-2-10-056703-4","La stratégie prix  : le pricing : levier indispensable pour augmenter votre rentabilité / Hermann Simon, Florent Jacquet, Franck Brault\n3e édition [mise à jour]\nParis : Dunod, DL 2011\nStratégies et management\n","Dunod",2011,34,1,{"$f":"C45892901[[#This Row],[PRIX UNITAIRE]]*C45892901[[#This Row],[QUANTITE]]","v":34},"Commande"]
["APL",28193,"978-2-911256-99-8","Introduction à la conception innovante  : éléments théoriques et pratiques de la théorie C-K / Marine Agogué, Frédéric Arnoux, Ingi Brown... [et al.] ; [préface de A. Hatchuel et B. Weil ; posface de C. Trémoureux]\nParis : Presses des Mines-Transvalor, impr. 2013\nCollection Économie et gestion","Presses des Mines-Transvalor",2013,15,1,{"$f":"C45892901[[#This Row],[PRIX UNITAIRE]]*C45892901[[#This Row],[QUANTITE]]","v":15},"Commande"]
["APL",28192,"978-2-311-40148-6","Études de marché  / Jean-Luc Giannelloni,... Éric Vernette,…\n4e édition\nParis : Vuibert, impr. 2015, cop. 2015\nCollection gestion, ISSN 0751-2872","Vuibert",2015,45,1,{"$f":"C45892901[[#This Row],[PRIX UNITAIRE]]*C45892901[[#This Row],[QUANTITE]]","v":45},"Commande"]
["APL",28194,"978-2-3260-0152-7","Marketing digital / Dave Chaffey,... Fiona Ellis-Chadwick ; [traduction et adaptation de l'anglais], Maria Mercanti-Guérin,... Henri Isaac,... Pierre Volle,…\n6e édition\nMontreuil : Pearson, copyright 2017","Pearson",2017,49,1,{"$f":"C45892901[[#This Row],[PRIX UNITAIRE]]*C45892901[[#This Row],[QUANTITE]]","v":49},"Commande"]

{"sheet":"45-89290-2","index":5,"n_rows":11,"n_cols":11,"rows_kept":11,"cut":false,"hidden":false,"merged":[]}
["SITE D'ACHAT","N° LIGNE DAUPHINE","ISBN","TITRE","EDITEUR","ANNEE","PRIX UNITAIRE","QUANTITE","TOTAL","STATUT","REMARQUES"]
["APL",28181,"978-2-7619-3882-2","Cessez d'être gentil, soyez vrai!  : être avec les autres en restant soi-même / Thomas d'Ansembourg ; illustrations, Alexis Nouailhat ;\npréface de Guy Corneau Montréal : \nHOMME (DE L'), 2013","HOMME (DE L')",2013,12,2,{"$f":"C45892902[[#This Row],[QUANTITE]]*C45892902[[#This Row],[PRIX UNITAIRE]]","v":24},"Commande"]
["APL",28182,"978-2-266-25883-8","Choisir sa vie  : apprendre à saisir sa chance / Tal Ben-Shahar ; traduit de l'anglais (Etats-Unis) par Hélène Collon\nParis : Pocket, 2017\nPocket, ISSN 0244-6405 ; 16361","Pocket",2017,7.5,2,{"$f":"C45892902[[#This Row],[QUANTITE]]*C45892902[[#This Row],[PRIX UNITAIRE]]","v":15},"Commande"]
["APL",28183,"978-2-88911-973-8","La communication non violente au quotidien  / Marshall B. Rosenberg ; traduction de Simone Mouton di Giovanni ; révisée par Anne Bourrit & Godfrey Spencer\nBernex (Suisse) : Jouvence, 2018\nLes clés de la CNV","Jouvence",2018,12.9,2,{"$f":"C45892902[[#This Row],[QUANTITE]]*C45892902[[#This Row],[PRIX UNITAIRE]]","v":25.8},"Commande"]
["APL",28184,"978-2-10-071294-6","Les compétences émotionnelles  / sous la direction de Moïra Mikolajczak ; avec la collaboration de Jordi Quoidbach, Ilios Kotsou, Delphine Nelis\nNouvelle présentation\nMalakoff (Hauts-de-Seine) : Dunod, 2014\nPsycho sup, ISSN 1275-4854 Psychologie cognitive","Dunod",2014,28,1,{"$f":"C45892902[[#This Row],[QUANTITE]]*C45892902[[#This Row],[PRIX UNITAIRE]]","v":28},"Commande"]
["APL",28185,"978-2-88911-824-3","Dénouer les conflits par la communication non violente  / Marshall B. Rosenberg ; entretiens avec Gabriele Seils ; traduit d'allemand de Daniel Béguin\nNouvelle édition\nBernex (Suisse) : Jouvence, 2017\nLes clés de la CNV","Jouvence",2017,19.5,2,{"$f":"C45892902[[#This Row],[QUANTITE]]*C45892902[[#This Row],[PRIX UNITAIRE]]","v":39},"Commande"]
["APL",28186,"978-2-7381-3411-0","Et n'oublie pas d'être heureux  : abécédaire de psychologie positive / Christophe André\nParis : O. Jacob, 2016","O. Jacob",2016,9.9,2,{"$f":"C45892902[[#This Row],[QUANTITE]]*C45892902[[#This Row],[PRIX UNITAIRE]]","v":19.8},"Commande"]
["APL",28187,"978-2-343-14507-5","Intelligence et compétences émotionnelles en entreprise  : perspectives multiples / sous la direction de Claude Berghmans ; préface Véronique Tran\nParis : L'Harmattan, 2018\nEconomie et innovation, ISSN 1768-5249","L'Harmattan",2018,35,1,{"$f":"C45892902[[#This Row],[QUANTITE]]*C45892902[[#This Row],[PRIX UNITAIRE]]","v":35},"Commande"]
["APL",28188,"978-2-290-06893-9","Où tu vas, tu es  : apprendre à méditer pour se libérer du stress et des tensions profondes / Jon Kabat-Zinn ; traduit de l'anglais (Etats-Unis) par Yolande Du Luart\nNouvelle présentation\nParis : J'ai lu, 2013\nJ'ai lu, ISSN 0291-3623 ; 7516 Bien-être Ahmed Djouder 1159-7623","J'ai lu",2013,6.7,2,{"$f":"C45892902[[#This Row],[QUANTITE]]*C45892902[[#This Row],[PRIX UNITAIRE]]","v":13.4},"Commande"]
["APL",28189,"978-2-88911-582-2","Petit cahier d'exercices de communication non violente  / Anne van Stappen ; illustrations Jean Augagneur\nNouvelle édition\nBernex (Suisse) : Jouvence, 2015\nPetit cahier, sport cérébral du bien-être ; 10","Jouvence",2015,6.9,2,{"$f":"C45892902[[#This Row],[QUANTITE]]*C45892902[[#This Row],[PRIX UNITAIRE]]","v":13.8},"Commande"]
["APL",28190,"978-2-412-03399-9","Trouver son ikigaï  : vivre de ce qui nous passionne / Christie Vanbremeersch\nParis : First Editions, 2018\nL'optimiste","First Editions",2018,12.95,2,{"$f":"C45892902[[#This Row],[QUANTITE]]*C45892902[[#This Row],[PRIX UNITAIRE]]","v":25.9},"Commande"]